bitfinex/quotes_BTCUSD_20250602
["timestamp","ask_amount","ask_price","bid_price","bid_amount"]
[1748823459626,0.24377274,105670.0,105660.0,0.1997507]
[1748823460066,0.23430932,105670.0,105660.0,0.401]
[1748823461226,0.23430932,105670.0,105660.0,0.001]
[1748823461928,0.23430932,105670.0,105660.0,0.19028639]
[1748823462607,0.23430932,105670.0,105660.0,0.1997507]
[1748823462816,0.23430932,105670.0,105660.0,0.19028639]
[1748823463709,0.23430932,105670.0,105660.0,0.001]
[1748823469538,0.01892979,105650.0,105640.0,0.10009199]
[1748823469758,0.33131409,105650.0,105640.0,0.10009199]
[1748823470815,0.33131409,105650.0,105640.0,0.10709199]
[1748823471021,0.33131409,105650.0,105640.0,0.29641421]
[1748823471229,0.33131409,105650.0,105640.0,0.50709199]
[1748823471467,0.33131409,105650.0,105640.0,0.69641421]
[1748823472269,0.33131409,105650.0,105640.0,0.70588032]
[1748823473798,0.33131409,105650.0,105640.0,0.69641421]
[1748823474228,0.33131409,105650.0,105640.0,0.30588032]
[1748823474440,0.32184933,105650.0,105640.0,0.10709199]
[1748823474666,0.3123843,105650.0,105640.0,0.50709199]
[1748823474894,0.32692515,105650.0,105640.0,0.10709199]
[1748823477621,0.30519018,105650.0,105640.0,0.30588023]
[1748823477831,0.31465494,105650.0,105640.0,0.30588023]
[1748823478046,0.31465494,105650.0,105640.0,0.31534607]
[1748823478274,0.29572515,105650.0,105640.0,0.10709199]
[1748823478540,0.32712515,105650.0,105640.0,0.10709199]
[1748823480242,0.62236515,105650.0,105640.0,0.10709199]
[1748823481289,0.62236515,105650.0,105640.0,0.29641421]
[1748823481529,0.60616515,105650.0,105640.0,0.10709199]
[1748823483838,0.62236515,105650.0,105640.0,0.10709199]
[1748823484097,0.25421436,105630.0,105620.0,0.02077771]
[1748823484333,0.25421436,105630.0,105600.0,0.0155]
[1748823484334,0.24181192,105600.0,105590.0,0.29754035]
[1748823484559,0.24181192,105600.0,105590.0,0.83728842]
[1748823484560,0.03347888,105600.0,105590.0,0.83728842]
[1748823484792,0.03347888,105600.0,105590.0,1.17728842]
[1748823485015,0.04294812,105600.0,105590.0,1.17728842]
[1748823485238,0.03347888,105600.0,105590.0,1.17728881]
[1748823485687,0.03347888,105600.0,105590.0,1.0944081]
[1748823485901,0.03347888,105600.0,105590.0,1.09439998]
[1748823486122,0.03347888,105600.0,105590.0,1.0855604]
[1748823486353,0.02400973,105600.0,105590.0,1.09639998]
[1748823486539,0.03347879,105600.0,105590.0,1.09639998]
[1748823486818,0.03347879,105600.0,105590.0,1.09739998]
[1748823487695,0.01454085,105600.0,105590.0,1.09739998]
[1748823488387,0.01454085,105600.0,105590.0,1.0885604]
[1748823488611,0.01454085,105600.0,105590.0,1.09739046]
[1748823489050,0.01454085,105600.0,105590.0,1.09738738]
[1748823489470,0.01454085,105600.0,105590.0,1.09738541]
[1748823489681,0.02400982,105600.0,105590.0,1.09738541]
[1748823489908,0.02400982,105600.0,105590.0,1.08791545]
[1748823490119,0.04294821,105600.0,105590.0,1.0973855]
[1748823490342,0.04294821,105600.0,105590.0,1.10685546]
[1748823490559,0.04294812,105600.0,105590.0,1.10685546]
[1748823490769,0.03347888,105600.0,105590.0,1.10685546]
[1748823490980,0.03347888,105600.0,105590.0,1.10685418]
[1748823491407,0.03347888,105600.0,105590.0,1.11567791]
[1748823492097,0.05241781,105600.0,105590.0,1.08726767]
[1748823492308,0.23234277,105600.0,105590.0,0.5688836]
[1748823492518,0.05241853,105600.0,105590.0,0.57835374]
[1748823492737,0.06741853,105600.0,105590.0,0.56888369]
[1748823492950,0.06741853,105600.0,105590.0,0.57835392]
[1748823493159,0.05241853,105600.0,105590.0,0.56953019]
[1748823493370,0.05241853,105600.0,105590.0,0.58782495]
[1748823493574,0.05241853,105600.0,105590.0,0.57835338]
[1748823493936,0.05241853,105600.0,105590.0,0.56953019]
[1748823494153,0.05241853,105600.0,105590.0,0.57900033]
[1748823494372,0.05241853,105600.0,105590.0,0.58782501]
[1748823494573,0.42055924,105600.0,105590.0,0.62869497]
[1748823494764,0.43002875,105600.0,105590.0,0.62869497]
[1748823494963,0.42055924,105600.0,105590.0,0.62869596]
[1748823495493,0.10666085,105600.0,105590.0,0.62869596]
[1748823495695,0.10666085,105600.0,105590.0,0.62869503]
[1748823495930,0.11612982,105600.0,105590.0,0.62869503]
[1748823496338,0.11612973,105600.0,105590.0,1.02869503]
[1748823496676,0.12559888,105600.0,105590.0,1.02869503]
[1748823496883,0.12559879,105600.0,105590.0,1.02869746]
[1748823497096,0.02400973,105600.0,105590.0,1.02869746]
[1748823497314,0.10666085,105600.0,105590.0,1.0286981]
[1748823497530,0.11612973,105600.0,105590.0,1.0286981]
[1748823497751,0.12559879,105600.0,105590.0,1.3212981]
[1748823497980,0.12559879,105600.0,105590.0,1.32129955]
[1748823498387,0.13506803,105600.0,105590.0,1.3212998]
[1748823498592,0.12559879,105600.0,105590.0,1.3212998]
[1748823498796,0.12559879,105600.0,105590.0,1.31182984]
[1748823499037,0.14453754,105600.0,105590.0,1.3212998]
[1748823499271,0.14453736,105600.0,105590.0,1.32130146]
[1748823499445,0.13506803,105600.0,105590.0,1.31247029]
[1748823499647,0.13506803,105600.0,105590.0,1.32130148]
[1748823499857,0.13506803,105600.0,105590.0,1.32130309]
[1748823500085,0.12559879,105600.0,105590.0,1.32130309]
[1748823500317,0.13506803,105600.0,105590.0,1.32130309]
[1748823500761,0.13506803,105600.0,105590.0,1.32130423]
[1748823500982,0.12559879,105600.0,105590.0,1.32130423]
[1748823501218,0.13506803,105600.0,105590.0,1.31247029]
[1748823501451,0.32446196,105600.0,105590.0,0.71325767]
[1748823501675,0.34669353,105600.0,105590.0,0.31325848]
[1748823501889,0.34669353,105600.0,105590.0,0.21070601]
[1748823502098,0.33069353,105600.0,105590.0,0.22017633]
[1748823502316,0.03347951,105600.0,105590.0,0.27915327]
[1748823502556,0.43006875,105600.0,105590.0,0.28862323]
[1748823502765,0.43006875,105600.0,105590.0,0.27978657]
[1748823503009,0.43953835,105600.0,105590.0,0.679153]
[1748823503662,0.44900804,105600.0,105590.0,0.679153]
[1748823503877,0.43006875,105600.0,105590.0,0.68862295]
[1748823504088,0.43953835,105600.0,105590.0,0.67915299]
[1748823504334,0.00951369,105620.0,105610.0,0.21778132]
[1748823504546,0.00951369,105620.0,105610.0,0.68493562]
[1748823504547,9.189e-05,105620.0,105610.0,0.68493562]
[1748823504767,9.189e-05,105620.0,105610.0,0.69377325]
[1748823505218,9.189e-05,105620.0,105610.0,0.70040085]
[1748823505718,0.00955916,105620.0,105610.0,0.70040085]
[1748823505968,0.00309189,105620.0,105610.0,0.69156307]
[1748823506210,0.00309189,105620.0,105610.0,0.70039965]
[1748823506466,0.00409189,105620.0,105610.0,0.70039963]
[1748823506723,0.00109189,105620.0,105610.0,1.08493562]
[1748823507048,0.00109189,105620.0,105610.0,1.10039934]
[1748823507273,0.00209189,105620.0,105610.0,1.10039934]
[1748823507489,0.00209189,105620.0,105610.0,1.08493562]
[1748823507698,0.00209189,105620.0,105610.0,1.10039928]
[1748823507905,0.00209189,105620.0,105610.0,1.10040182]
[1748823508347,0.00209189,105620.0,105610.0,1.10040181]
[1748823509618,0.00209189,105620.0,105610.0,1.10040305]
[1748823510036,0.00209189,105620.0,105610.0,1.10040558]
[1748823510441,0.00209189,105620.0,105610.0,1.3841656]
[1748823510704,0.01155907,105620.0,105610.0,1.68792511]
[1748823510920,0.01155898,105620.0,105610.0,1.39528511]
[1748823511132,0.00209189,105620.0,105610.0,1.39528752]
[1748823511550,0.01155907,105620.0,105610.0,1.38865671]
[1748823511775,0.01155907,105620.0,105610.0,1.38644643]
[1748823512008,0.01155907,105620.0,105610.0,1.37981562]
[1748823512221,0.01155907,105620.0,105610.0,1.38644643]
[1748823512445,0.01155907,105620.0,105610.0,1.37981562]
[1748823512663,0.00209189,105620.0,105610.0,1.37981562]
[1748823512890,0.00209189,105620.0,105610.0,1.08493562]
[1748823513801,0.0210267,105620.0,105610.0,1.10041582]
[1748823514015,0.01155916,105620.0,105610.0,1.09378011]
[1748823514230,0.01155916,105620.0,105610.0,1.10041348]
[1748823515131,0.01155916,105620.0,105610.0,1.10041356]
[1748823515339,0.00209189,105620.0,105610.0,1.10041368]
[1748823515551,0.01155907,105620.0,105610.0,1.10041316]
[1748823515754,0.01155907,105620.0,105610.0,1.06911316]
[1748823515968,0.01155907,105620.0,105610.0,1.0942797]
[1748823516182,0.00209189,105620.0,105610.0,1.10091233]
[1748823516404,0.01155907,105620.0,105610.0,1.0942786]
[1748823516620,0.00209189,105620.0,105610.0,1.0942786]
[1748823516830,0.00209189,105620.0,105610.0,1.08543562]
[1748823517063,0.00209189,105620.0,105610.0,1.09427812]
[1748823517298,0.01155898,105620.0,105610.0,1.10090999]
[1748823518117,0.00209189,105620.0,105610.0,1.10090999]
[1748823518330,0.00209189,105620.0,105610.0,1.0942776]
[1748823518604,0.00209189,105620.0,105610.0,1.10090908]
[1748823518841,0.00209189,105620.0,105610.0,1.08543562]
[1748823519077,0.00209189,105620.0,105610.0,1.10090823]
[1748823519757,0.00209189,105620.0,105610.0,1.10090676]
[1748823520521,0.00209189,105620.0,105610.0,1.10090555]
[1748823520965,0.00209189,105620.0,105610.0,1.10090473]
[1748823521302,0.00209189,105620.0,105610.0,1.09427476]
[1748823521540,0.00209189,105620.0,105610.0,1.39350411]
[1748823521786,0.00209189,105620.0,105610.0,1.39350357]
[1748823522483,0.00209189,105620.0,105610.0,1.37803562]
[1748823522702,0.00209189,105620.0,105610.0,1.39350261]
[1748823522913,0.00209189,105620.0,105610.0,1.39350191]
[1748823523123,0.00209189,105620.0,105610.0,1.68790191]
[1748823524843,0.00209189,105620.0,105610.0,1.68790261]
[1748823525268,0.00209189,105620.0,105610.0,1.68790355]
[1748823525620,0.00209189,105620.0,105610.0,1.68790463]
[1748823526048,0.00209189,105620.0,105610.0,1.68790544]
[1748823526929,0.00209189,105620.0,105610.0,1.6879064]
[1748823527132,0.00209189,105620.0,105610.0,1.68790712]
[1748823527324,0.00209189,105620.0,105610.0,1.68790711]
[1748823527663,0.00209189,105620.0,105610.0,1.68790958]
[1748823527864,0.00209189,105620.0,105610.0,1.67243562]
[1748823528087,0.00209189,105620.0,105610.0,1.68790958]
[1748823528517,0.00209189,105620.0,105610.0,1.68791248]
[1748823528671,0.00209189,105620.0,105610.0,1.68127954]
[1748823528909,0.00209189,105620.0,105610.0,1.6879132]
[1748823529478,0.00209189,105620.0,105610.0,1.68791361]
[1748823529677,0.00209189,105620.0,105610.0,1.69154269]
[1748823530722,0.00209189,105620.0,105610.0,1.69154541]
[1748823530934,0.00209189,105620.0,105610.0,1.69154775]
[1748823531774,0.00209189,105620.0,105610.0,1.69155128]
[1748823531982,0.01155898,105620.0,105610.0,1.69083128]
[1748823532392,0.00209189,105620.0,105610.0,1.69083873]
[1748823532600,0.00209189,105620.0,105610.0,1.69083875]
[1748823533249,0.01155907,105620.0,105610.0,1.69083875]
[1748823533455,0.01155907,105620.0,105610.0,1.67484818]
[1748823533655,0.01155898,105620.0,105610.0,1.66821017]
[1748823533858,0.01155898,105620.0,105610.0,1.67485579]
[1748823534056,0.00209189,105620.0,105610.0,1.69055579]
[1748823534259,0.00209189,105620.0,105610.0,1.69539534]
[1748823534461,0.00209189,105620.0,105610.0,1.69539533]
[1748823534673,0.00209189,105620.0,105610.0,1.69540724]
[1748823534872,0.00209189,105620.0,105610.0,1.69540743]
[1748823535483,0.00209189,105620.0,105610.0,1.69540762]
[1748823535881,0.00209189,105620.0,105610.0,1.69540787]
[1748823536755,0.00209189,105620.0,105610.0,1.68876477]
[1748823536970,0.00209189,105620.0,105610.0,1.69541577]
[1748823537386,0.00209189,105620.0,105610.0,1.69541586]
[1748823537771,0.00209189,105620.0,105610.0,1.40173586]
[1748823538013,0.02102634,105620.0,105610.0,1.69505586]
[1748823538208,0.02102625,105620.0,105610.0,1.695056]
[1748823538438,0.00209189,105620.0,105610.0,1.67953677]
[1748823538644,0.00209189,105620.0,105610.0,1.6950561]
[1748823539235,0.00209189,105620.0,105610.0,1.4017361]
[1748823539445,0.00209189,105620.0,105610.0,1.37023622]
[1748823539794,0.00209189,105620.0,105610.0,1.37023682]
[1748823540194,0.00209189,105620.0,105610.0,1.36136822]
[1748823540405,0.00209189,105620.0,105610.0,1.37023682]
[1748823540604,0.01155907,105620.0,105610.0,1.37023705]
[1748823540809,0.01155898,105620.0,105610.0,1.37023705]
[1748823541006,0.03049361,105620.0,105610.0,1.36076912]
[1748823541209,0.24072634,105620.0,105610.0,0.75916268]
[1748823541511,0.34904634,105620.0,105610.0,0.61800792]
[1748823541679,0.34904634,105620.0,105610.0,0.60831351]
[1748823541880,0.34904634,105620.0,105610.0,0.01552184]
[1748823542212,0.34904634,105620.0,105610.0,0.01552208]
[1748823542418,0.23134462,105610.0,105600.0,0.4036418]
[1748823542540,0.23134462,105610.0,105600.0,0.419165]
[1748823542756,0.23134462,105610.0,105600.0,0.75915877]
[1748823542956,0.23134462,105610.0,105600.0,0.01551319]
[1748823543156,0.52458462,105610.0,105600.0,0.01551325]
[1748823543389,0.52458462,105610.0,105600.0,0.00886468]
[1748823543582,0.24520438,105600.0,105590.0,0.20770601]
[1748823543788,0.33608438,105600.0,105590.0,0.22322018]
[1748823543957,0.33608438,105600.0,105590.0,0.01547274]
[1748823544160,0.33608438,105600.0,105590.0,0.0243294]
[1748823544364,0.33608438,105600.0,105590.0,0.02432289]
[1748823544605,0.33608438,105600.0,105590.0,0.01768039]
[1748823544809,0.33608438,105600.0,105590.0,0.01767535]
[1748823545235,0.33608438,105600.0,105590.0,0.01867535]
[1748823546398,0.33608438,105600.0,105590.0,0.21755772]
[1748823546578,0.04294857,105600.0,105590.0,0.24596823]
[1748823546781,0.04294857,105600.0,105590.0,0.24596841]
[1748823546984,0.05241826,105600.0,105590.0,0.64595956]
[1748823547214,0.05241826,105600.0,105590.0,0.63711679]
[1748823547389,0.24181219,105600.0,105590.0,0.64595957]
[1748823547590,0.23234322,105600.0,105590.0,0.63648943]
[1748823547798,0.22287398,105600.0,105590.0,0.61754888]
[1748823548003,0.23503478,105600.0,105590.0,0.41866651]
[1748823548202,0.23503478,105600.0,105590.0,0.4281371]
[1748823548546,0.23503478,105600.0,105590.0,0.61754897]
[1748823549179,0.23503478,105600.0,105590.0,0.60870619]
[1748823549568,0.23503478,105600.0,105590.0,0.6276471]
[1748823549967,0.23503478,105600.0,105590.0,0.23711733]
[1748823550391,0.23503478,105600.0,105590.0,0.63711733]
[1748823550766,0.23503478,105600.0,105590.0,0.64658747]
[1748823550767,0.22940429,105600.0,105590.0,0.64658747]
[1748823552692,0.04294929,105600.0,105590.0,0.64658684]
[1748823552928,0.23234322,105600.0,105590.0,0.63711688]
[1748823553663,0.23234322,105600.0,105590.0,0.23711688]
[1748823554173,0.23234322,105600.0,105590.0,0.63711688]
[1748823554830,0.23234322,105600.0,105590.0,0.62764674]
[1748823555154,0.0334796,105600.0,105590.0,0.63711661]
[1748823555523,0.23234313,105600.0,105590.0,0.62764665]
[1748823555709,0.24181282,105600.0,105590.0,0.62764665]
[1748823556115,0.05241889,105600.0,105590.0,0.62764665]
[1748823556344,0.24181282,105600.0,105590.0,0.62764665]
[1748823557149,0.24181282,105600.0,105590.0,0.22764665]
[1748823557560,0.24181282,105600.0,105590.0,0.62764665]
[1748823558360,0.24181282,105600.0,105590.0,0.62764674]
[1748823558523,0.22287407,105600.0,105590.0,0.61817651]
[1748823558945,0.24520447,105600.0,105590.0,0.40982373]
[1748823559153,0.24520447,105600.0,105590.0,0.41929432]
[1748823559358,0.24520447,105600.0,105590.0,0.61817669]
[1748823560332,0.24520447,105600.0,105590.0,0.00982373]
[1748823560932,0.53828447,105600.0,105590.0,0.00982373]
[1748823562513,0.24520447,105600.0,105590.0,0.00982373]
[1748823562709,0.26432152,105600.0,105590.0,0.00982373]
[1748823566666,0.29275752,105600.0,105590.0,0.00982373]
[1748823567990,0.38367752,105600.0,105590.0,0.00982373]
[1748823575276,0.67627752,105600.0,105590.0,0.00982373]
[1748823581270,0.67627752,105600.0,105570.0,0.02]
[1748823581271,0.01454085,105580.0,105570.0,0.02]
[1748823581490,0.61153691,105580.0,105570.0,0.02]
[1748823581707,0.91289691,105580.0,105570.0,0.02]
[1748823582578,0.91298875,105580.0,105570.0,0.022]
[1748823582801,0.91298875,105580.0,105560.0,0.03]
[1748823582802,0.5694608,105570.0,105560.0,0.03]
[1748823583011,0.6801608,105570.0,105560.0,0.03]
[1748823584543,0.6801608,105570.0,105540.0,0.2456883]
[1748823584544,0.23244569,105550.0,105540.0,0.2456883]
[1748823584752,0.23244569,105550.0,105540.0,0.35765734]
[1748823584968,0.05243613,105550.0,105540.0,0.76713184]
[1748823585174,0.05243613,105550.0,105540.0,0.77660628]
[1748823585374,0.05243613,105550.0,105540.0,0.77660627]
[1748823585598,0.05243613,105550.0,105540.0,0.76713191]
[1748823585812,0.05243613,105550.0,105540.0,0.76713203]
[1748823586016,0.04296267,105550.0,105540.0,0.76713203]
[1748823586187,0.04296267,105550.0,105540.0,0.77012858]
[1748823586422,0.23244632,105550.0,105540.0,1.05325395]
[1748823586627,0.22297259,105550.0,105540.0,0.6466175]
[1748823586847,0.21349859,105550.0,105540.0,0.0190117]
[1748823587081,0.22919859,105550.0,105540.0,0.0190117]
[1748823587489,0.21349859,105550.0,105540.0,0.0190117]
[1748823587695,0.22297241,105550.0,105540.0,0.02848669]
[1748823588103,0.23244659,105550.0,105540.0,0.2591632]
[1748823588515,0.04296294,105550.0,105540.0,0.26863783]
[1748823588714,0.23244659,105550.0,105540.0,0.2591632]
[1748823588921,0.22297277,105550.0,105540.0,0.25916338]
[1748823589122,0.21349868,105550.0,105540.0,0.25916338]
[1748823589328,0.04296258,105550.0,105540.0,0.27811282]
[1748823589534,0.23244623,105550.0,105540.0,0.26863819]
[1748823589711,0.23244623,105550.0,105540.0,0.27811291]
[1748823589962,0.22297259,105550.0,105540.0,0.0507117]
[1748823590178,0.21349868,105550.0,105540.0,0.06018669]
[1748823590384,0.21349868,105550.0,105540.0,0.2496883]
[1748823590594,0.5440245,105550.0,105540.0,0.0190117]
[1748823590803,0.21351736,105540.0,105530.0,0.2926]
[1748823591026,0.0284298,105520.0,105510.0,0.03503238]
[1748823591270,0.19903308,105510.0,105500.0,0.72880846]
[1748823591504,0.10228528,105510.0,105500.0,0.64049052]
[1748823591735,0.01454085,105510.0,105500.0,0.64996883]
[1748823591969,0.01454085,105510.0,105500.0,0.25944687]
[1748823592202,0.01454085,105510.0,105500.0,0.25993249]
[1748823592631,0.01454085,105510.0,105500.0,0.65993249]
[1748823592840,0.01454085,105510.0,105500.0,0.73617743]
[1748823593054,0.74632,105530.0,105520.0,0.2084909]
[1748823593279,0.45318085,105530.0,105520.0,0.21796741]
[1748823593514,0.47213163,105530.0,105520.0,0.2173223]
[1748823593718,0.48160697,105530.0,105520.0,0.21796741]
[1748823593926,0.48160697,105530.0,105520.0,0.21732215]
[1748823594126,0.49108267,105530.0,105520.0,0.21732201]
[1748823594432,0.45518085,105530.0,105520.0,0.22679843]
[1748823594638,0.46465611,105530.0,105520.0,0.2084909]
[1748823595099,0.35854085,105530.0,105520.0,0.25814347]
[1748823595551,0.35854085,105530.0,105520.0,0.2297143]
[1748823595811,0.35854085,105530.0,105520.0,0.43906707]
[1748823595812,0.004,105530.0,105520.0,0.43906707]
[1748823596038,0.004,105530.0,105520.0,0.83906707]
[1748823596260,0.03323701,105560.0,105520.0,1.1411593]
[1748823596487,0.16144805,105590.0,105570.0,0.1989056]
[1748823596711,0.03788416,105580.0,105570.0,0.18943322]
[1748823597154,0.36841348,105580.0,105570.0,0.18943322]
[1748823597420,0.02841348,105580.0,105570.0,0.18943322]
[1748823597646,0.36841348,105580.0,105570.0,0.18943322]
[1748823597860,0.04295433,105580.0,105570.0,0.18991884]
[1748823598067,0.38795433,105580.0,105570.0,0.19091884]
[1748823598500,0.57738414,105580.0,105570.0,0.19091884]
[1748823599156,0.68958284,105580.0,105570.0,0.19091884]
[1748823599609,4.25247806,105580.0,105570.0,0.00148562]
[1748823599827,4.67567806,105580.0,105570.0,0.00148562]
[1748823600521,0.38697173,105580.0,105570.0,0.20040575]
[1748823600748,0.59094284,105580.0,105570.0,0.19093337]
[1748823600989,0.5814718,105580.0,105570.0,0.19093337]
[1748823601466,0.5814718,105580.0,105570.0,0.00148562]
[1748823601685,0.69805497,105580.0,105570.0,0.00148562]
[1748823601914,0.97924067,105580.0,105570.0,0.00148562]
[1748823602830,0.57200067,105580.0,105570.0,0.00148562]
[1748823603036,0.97936067,105580.0,105570.0,0.00148562]
[1748823605297,4.57695797,105580.0,105570.0,0.00148562]
[1748823605512,4.67555797,105580.0,105570.0,0.00148562]
[1748823606975,4.66025797,105580.0,105570.0,0.00148562]
[1748823608034,0.4906419,105580.0,105570.0,0.20040566]
[1748823608254,0.48557254,105580.0,105570.0,0.20040566]
[1748823608476,0.67500235,105580.0,105570.0,0.20673337]
[1748823608733,0.6895432,105580.0,105570.0,0.20673337]
[1748823609132,0.36794181,105580.0,105570.0,0.22303337]
[1748823609342,0.47601285,105580.0,105570.0,0.65144943]
[1748823609551,0.48548416,105580.0,105570.0,0.64197777]
[1748823609782,0.48548479,105580.0,105570.0,0.64197786]
[1748823610221,0.48548479,105580.0,105570.0,0.65144979]
[1748823610641,0.48548479,105580.0,105570.0,0.64197786]
[1748823610849,0.49495628,105580.0,105570.0,0.64197768]
[1748823611063,0.49478855,105580.0,105570.0,0.65144961]
[1748823611269,0.67981713,105580.0,105570.0,0.59093337]
[1748823611483,0.67981713,105580.0,105570.0,0.60987786]
[1748823611681,0.67981713,105580.0,105570.0,0.60040575]
[1748823611886,0.67981713,105580.0,105570.0,0.60987795]
[1748823612296,0.67981713,105580.0,105570.0,0.20987795]
[1748823612938,0.48108356,105580.0,105570.0,0.23584997]
[1748823613141,0.49055397,105580.0,105570.0,0.26162181]
[1748823613609,0.47161162,105580.0,105570.0,0.27109356]
[1748823613849,0.49055397,105580.0,105570.0,0.26162181]
[1748823614058,0.50002546,105580.0,105570.0,0.25214997]
[1748823614262,0.50002546,105580.0,105570.0,0.26162208]
[1748823614916,0.68945527,105580.0,105570.0,0.26162208]
[1748823615141,0.69876668,105580.0,105570.0,0.26162208]
[1748823615346,0.67982487,105580.0,105570.0,0.23320575]
[1748823615560,0.67982487,105580.0,105570.0,0.24267804]
[1748823615783,0.67982487,105580.0,105570.0,0.25215015]
[1748823616429,0.67982487,105580.0,105570.0,0.43428562]
[1748823616639,0.67982487,105580.0,105570.0,0.62373337]
[1748823617067,0.67035356,105580.0,105570.0,0.01798562]
[1748823617284,0.67035356,105580.0,105570.0,0.00148562]
[1748823618351,0.97999356,105580.0,105570.0,0.20040566]
[1748823618564,0.97052207,105580.0,105570.0,0.03298562]
[1748823619013,0.97052207,105580.0,105570.0,0.00148562]
[1748823620542,0.98642207,105580.0,105570.0,0.00148562]
[1748823621225,0.97052207,105580.0,105570.0,0.00148562]
[1748823621669,0.98552207,105580.0,105570.0,0.00148562]
[1748823624156,0.97052207,105580.0,105570.0,0.00148562]
[1748823624877,0.96940207,105580.0,105570.0,0.00148562]
[1748823630961,0.96940207,105580.0,105570.0,0.01035704]
[1748823631734,0.96940207,105580.0,105570.0,0.00148562]
[1748823631735,1.09755637,105580.0,105570.0,0.00148562]
[1748823631955,0.2040245,105550.0,105530.0,0.03524187]
[1748823632163,0.21351736,105540.0,105530.0,0.44047316]
[1748823632368,0.18951956,105530.0,105520.0,0.60609976]
[1748823632576,0.02842692,105530.0,105520.0,0.72978012]
[1748823632809,0.02842692,105530.0,105520.0,1.1267802]
[1748823632810,0.01895113,105530.0,105520.0,1.1267802]
[1748823633036,0.0189506,105530.0,105520.0,1.1267802]
[1748823633241,0.53895774,105550.0,105540.0,0.18950161]
[1748823633386,0.11882944,105540.0,105530.0,0.24954577]
[1748823633570,0.12830443,105540.0,105530.0,0.24908057]
[1748823633944,0.14725432,105540.0,105530.0,0.26155659]
[1748823634163,0.31780658,105540.0,105530.0,0.03474549]
[1748823634372,0.32287253,105540.0,105530.0,0.00014549]
[1748823634608,0.32287253,105540.0,105530.0,0.01101019]
[1748823635043,0.32287253,105540.0,105530.0,0.01101031]
[1748823635468,0.32287253,105540.0,105530.0,0.01100252]
[1748823635714,0.32287253,105540.0,105530.0,0.01300253]
[1748823636371,0.77492683,105540.0,105530.0,0.00414549]
[1748823636614,0.79062683,105540.0,105530.0,0.00414549]
[1748823636840,0.56299253,105540.0,105530.0,0.00414549]
[1748823637048,0.97139253,105540.0,105530.0,0.00414549]
[1748823637251,0.98749253,105540.0,105530.0,0.00414549]
[1748823637672,1.06390375,105540.0,105530.0,0.00414549]
[1748823637914,0.97139253,105540.0,105530.0,0.00414549]
[1748823639627,1.09824683,105540.0,105530.0,0.00414549]
[1748823641065,1.09824683,105540.0,105500.0,0.81316178]
[1748823641066,0.55355506,105520.0,105500.0,0.51718286]
[1748823641283,0.02843169,105510.0,105500.0,0.35494191]
[1748823641495,0.00947696,105510.0,105500.0,0.35494191]
[1748823641715,0.00947696,105510.0,105500.0,0.75494191]
[1748823641925,0.99402138,105520.0,105510.0,0.23063308]
[1748823642129,0.49240386,105520.0,105510.0,0.24958781]
[1748823642346,0.67242835,105520.0,105510.0,0.23063308]
[1748823642772,0.65347524,105520.0,105510.0,0.23063308]
[1748823643319,0.65347524,105520.0,105510.0,0.23063326]
[1748823643948,0.65347524,105520.0,105510.0,0.24011094]
[1748823644355,0.66395184,105520.0,105510.0,0.24958835]
[1748823644835,0.38596948,105520.0,105510.0,0.26006549]
[1748823645044,0.40492268,105520.0,105510.0,0.26006549]
[1748823645251,0.39544599,105520.0,105510.0,0.66006549]
[1748823645463,0.05544599,105520.0,105510.0,0.66006549]
[1748823645681,0.0649234,105520.0,105510.0,0.66889632]
[1748823646098,0.04596993,105520.0,105510.0,0.66889626]
[1748823646304,0.003,105520.0,105510.0,0.76475056]
[1748823646693,0.01247624,105520.0,105510.0,0.76475056]
[1748823646906,0.003,105520.0,105510.0,0.76475056]
[1748823647177,0.01247615,105520.0,105510.0,0.76475056]
[1748823647361,0.01247615,105520.0,105510.0,0.76474993]
[1748823647531,0.003,105520.0,105510.0,0.76474993]
[1748823647735,0.003,105520.0,105510.0,1.07630993]
[1748823648136,0.003,105520.0,105510.0,1.06747979]
[1748823648337,0.003,105520.0,105510.0,1.0763096]
[1748823648765,0.01247606,105520.0,105510.0,1.0763096]
[1748823649168,0.003,105520.0,105510.0,1.0763096]
[1748823649817,0.003,105520.0,105510.0,1.06747979]
[1748823650568,0.01247615,105520.0,105510.0,1.06747979]
[1748823650771,0.003,105520.0,105510.0,1.06747979]
[1748823651436,0.003,105520.0,105510.0,1.36007979]
[1748823651836,0.01247606,105520.0,105510.0,1.36007979]
[1748823652044,0.02195239,105520.0,105510.0,1.36007979]
[1748823652255,0.02195239,105520.0,105510.0,1.35963979]
[1748823652874,0.0314289,105520.0,105510.0,1.35963979]
[1748823653074,0.02195239,105520.0,105510.0,1.35963979]
[1748823653602,0.04090541,105520.0,105510.0,1.04851979]
[1748823653807,0.23044365,105520.0,105510.0,1.03904274]
[1748823654010,0.23044365,105520.0,105510.0,1.05799738]
[1748823654212,0.04090613,105520.0,105510.0,1.05799675]
[1748823654412,0.04090613,105520.0,105510.0,1.03904238]
[1748823654591,0.04090613,105520.0,105510.0,1.02956497]
[1748823655248,0.22096732,105520.0,105510.0,1.02956497]
[1748823655968,0.2114909,105520.0,105510.0,1.02956497]
[1748823656603,0.2020143,105520.0,105510.0,0.62008747]
[1748823657026,0.19253752,105520.0,105510.0,0.7894543]
[1748823657231,0.19253752,105520.0,105510.0,0.98848756]
[1748823657446,0.19253752,105520.0,105510.0,0.50633207]
[1748823657650,0.19253752,105520.0,105510.0,0.70536524]
[1748823657856,0.21149081,105520.0,105510.0,0.72432033]
[1748823658076,0.21149081,105520.0,105510.0,0.70536524]
[1748823658738,0.2020143,105520.0,105510.0,0.401]
[1748823659397,0.21655515,105520.0,105510.0,0.001]
[1748823659904,0.68490945,105520.0,105510.0,0.001]
[1748823660544,0.68490945,105520.0,105500.0,0.0001084]
[1748823660545,0.21357393,105510.0,105500.0,0.0001084]
[1748823660749,0.99711393,105510.0,105500.0,0.0001084]
[1748823661374,1.09296823,105510.0,105500.0,0.0001084]
[1748823661785,1.18547945,105510.0,105500.0,0.0001084]
[1748823661999,1.09296823,105510.0,105500.0,0.0001084]
[1748823662674,1.09296823,105510.0,105460.0,0.00363469]
[1748823662675,0.20858947,105470.0,105460.0,0.00363469]
[1748823662895,0.19914632,105450.0,105440.0,0.0160117]
[1748823663119,0.50950632,105450.0,105440.0,0.0160117]
[1748823664010,0.20862921,105450.0,105440.0,0.0160117]
[1748823664222,0.52969762,105450.0,105440.0,0.0503117]
[1748823664432,0.52021473,105450.0,105440.0,0.04379567]
[1748823664645,0.34003329,105450.0,105440.0,0.26096079]
[1748823664849,0.35003636,105450.0,105440.0,0.251477]
[1748823665103,0.35003636,105450.0,105440.0,0.27992801]
[1748823665310,0.00114534,105450.0,105440.0,0.37578231]
[1748823665515,0.02011049,105450.0,105440.0,0.37578231]
[1748823665733,0.00114534,105450.0,105440.0,0.37578231]
[1748823666407,0.00114534,105450.0,105440.0,0.68746231]
[1748823666616,0.00114534,105450.0,105440.0,1.08746231]
[1748823668315,0.00114534,105450.0,105440.0,1.38006231]
[1748823669553,0.00114534,105450.0,105440.0,1.38062231]
[1748823671325,0.00114534,105450.0,105440.0,1.38014231]
[1748823672268,0.00114534,105450.0,105440.0,1.40838231]